fUSD/lending_fUSD_20250923
["ID","MTS","AMOUNT","RATE_DAILY","PERIOD"]
[387245709,1758664370334,-403.19,0.00026849,3]
[387245710,1758664370343,-1160.52,0.00026849,3]
[387245711,1758664370353,-400.0,0.00026849,3]
[387245712,1758664370362,-400.0,0.00026849,3]
[387245713,1758664370372,-4427.59,0.00026849,3]
[387245714,1758664370381,-736.09,0.00026849,3]
[387245715,1758664370390,-1729.78,0.00026849,3]
[387245716,1758664370404,-509.42,0.00026849,3]
[387245717,1758664370413,-858.26,0.00026849,3]
[387245718,1758664370423,-2115.52,0.00026849,3]
[387245719,1758664370433,-163.79294464,0.00026849,3]
[387245720,1758664370442,-523.04,0.00026849,3]
[387245721,1758664370452,-1946.73,0.00026849,3]
[387245722,1758664370461,-590.58,0.00026849,3]
[387245723,1758664370472,-1720.08,0.00026849,3]
[387245724,1758664370482,-2168.16,0.00026849,3]
[387245725,1758664370492,-570.83,0.00026849,3]
[387245726,1758664370502,-1479.38,0.00026849,3]
[387245727,1758664370511,-543.91,0.00026849,3]
[387245728,1758664370521,-3204.79,0.00026849,3]
[387245729,1758664370530,-1290.76,0.00026849,3]
[387245730,1758664370540,-400.0,0.00026849,3]
[387245731,1758664370550,-466.33,0.00026849,3]
[387245732,1758664370560,-727.07,0.00026849,3]
[387245733,1758664370570,-633.05,0.00026849,3]
[387245734,1758664370580,-1323.54,0.00026849,3]
[387245735,1758664370591,-413.88,0.00026849,3]
[387245736,1758664370601,-485.74277116,0.00026849,3]
[387245737,1758664370610,-505.54,0.00026849,3]
[387245738,1758664370620,-1000.0,0.00026849,3]
[387245739,1758664370630,-654.93,0.00026849,3]
[387245740,1758664370639,-760.67,0.00026849,3]
[387245741,1758664370648,-1733.39,0.00026849,3]
[387245742,1758664370658,-2310.41,0.00026849,3]
[387245743,1758664370667,-562.75,0.00026849,3]
[387245744,1758664370677,-400.0,0.00026849,3]
[387245745,1758664370686,-2523.28,0.00026849,3]
[387245746,1758664370696,-551.29,0.00026849,3]
[387245747,1758664370705,-1966.27,0.00026849,3]
[387245748,1758664370715,-2604.18,0.00026849,3]
[387245749,1758664370724,-1174.67,0.00026849,3]
[387245750,1758664370733,-421.49,0.00026849,3]
[387245751,1758664370742,-400.0,0.00026849,3]
[387245752,1758664370752,-706.26,0.00026849,3]
[387245753,1758664370762,-2276.88,0.00026849,3]
[387245754,1758664370771,-3628.11,0.00026849,3]
[387245755,1758664370782,-565.31,0.00026849,3]
[387245756,1758664370791,-1829.63,0.00026849,3]
[387245757,1758664370801,-2647.87,0.00026849,3]
[387245758,1758664370811,-3130.39,0.00026849,3]
[387245759,1758664370820,-2516.63,0.00026849,3]
[387245760,1758664370830,-1595.55,0.00026849,3]
[387245761,1758664370839,-400.0,0.00026849,3]
[387245762,1758664370848,-400.0,0.00026849,3]
[387245763,1758664370858,-1399.27,0.00026849,3]
[387245764,1758664370867,-4362.99,0.00026849,3]
[387245765,1758664370876,-1323.37,0.00026849,3]
[387245766,1758664370886,-2164.69,0.00026849,3]
[387245767,1758664370895,-410.88,0.00026849,3]
[387245768,1758664370905,-554.53,0.00026849,3]
[387245769,1758664370914,-2696.65,0.00026849,3]
[387245770,1758664370924,-2557.76,0.00026849,3]
[387245771,1758664370933,-400.0,0.00026849,3]
[387245772,1758664370943,-436.41,0.00026849,3]
[387245773,1758664370952,-1822.61,0.00026849,3]
[387245774,1758664370961,-2080.13,0.00026849,3]
[387245775,1758664370972,-7563.58,0.00026849,3]
[387245776,1758664370981,-2197.93,0.00026849,3]
[387245777,1758664370990,-528.77782151,0.00026849,3]
[387245778,1758664371000,-547.88,0.00026849,3]
[387245779,1758664371009,-2360.32,0.00026849,3]
[387245780,1758664371019,-3272.4,0.00026849,3]
[387245781,1758664371029,-2254.46,0.00026849,3]
[387245782,1758664371039,-2668.58,0.00026849,3]
[387245783,1758664371049,-439.37,0.00026849,3]
[387245784,1758664371059,-1439.94,0.00026849,3]
[387245785,1758664371069,-413.35,0.00026849,3]
[387245786,1758664371079,-1694.56,0.00026849,3]
[387245787,1758664371089,-587.39,0.00026849,3]
[387245788,1758664371099,-400.0,0.00026849,3]
[387245789,1758664371109,-400.0,0.00026849,3]
[387245790,1758664371118,-877.79,0.00026849,3]
[387245791,1758664371128,-400.0,0.00026849,3]
[387245792,1758664371138,-400.0,0.00026849,3]
[387245793,1758664371147,-400.0,0.00026849,3]
[387245794,1758664371157,-1910.92,0.00026849,3]
[387245795,1758664371166,-400.0,0.00026849,3]
[387245796,1758664371176,-2031.07,0.00026849,3]
[387245797,1758664371185,-784.22,0.00026849,3]
[387245798,1758664371195,-791.36,0.00026849,3]
[387245799,1758664371204,-400.0,0.00026849,3]
[387245800,1758664371214,-559.88,0.00026849,3]
[387245801,1758664371224,-976.72,0.00026849,3]
[387245802,1758664371234,-626.61,0.00026849,3]
[387245803,1758664371244,-4896.65,0.00026849,3]
[387245804,1758664371254,-400.0,0.00026849,3]
[387245805,1758664371263,-1175.49,0.00026849,3]
[387245806,1758664371273,-1207.96,0.00026849,3]
[387245807,1758664371283,-2758.07,0.00026849,3]
[387245808,1758664371292,-400.0,0.00026849,3]
[387245809,1758664371301,-2495.95,0.00026849,3]
[387245810,1758664371311,-1205.82,0.00026849,3]
[387245811,1758664371321,-1169.14,0.00026849,3]
[387245812,1758664371330,-1595.32,0.00026849,3]
[387245813,1758664371340,-400.0,0.00026849,3]
[387245814,1758664371349,-1049.38,0.00026849,3]
[387245815,1758664371358,-400.0,0.00026849,3]
[387245816,1758664371368,-685.44,0.00026849,3]
[387245817,1758664371377,-4079.21,0.00026849,3]
[387245818,1758664371387,-400.0,0.00026849,3]
[387245819,1758664371398,-2510.3,0.00026849,3]
[387245820,1758664371409,-1890.53,0.00026849,3]
[387245821,1758664371419,-1678.52,0.00026849,3]
[387245822,1758664371429,-16706.02,0.00026849,3]
[387245823,1758664371440,-400.0,0.00026849,3]
[387245824,1758664371449,-400.0,0.00026849,3]
[387245825,1758664371459,-4251.49,0.00026849,3]
[387245826,1758664371468,-400.0,0.00026849,3]
[387245827,1758664371478,-689.28,0.00026849,3]
[387245828,1758664371488,-400.0,0.00026849,3]
[387245829,1758664371497,-2074.52,0.00026849,3]
[387245830,1758664371507,-720.98,0.00026849,3]
[387245831,1758664371516,-400.0,0.00026849,3]
[387245832,1758664371526,-400.0,0.00026849,3]
[387245833,1758664371536,-425.15,0.00026849,3]
[387245834,1758664371545,-3330.98,0.00026849,3]
[387245835,1758664371555,-487.18,0.00026849,3]
[387245836,1758664371564,-605.39,0.00026849,3]
[387245837,1758664371573,-400.0,0.00026849,3]
[387245838,1758664371583,-425.07,0.00026849,3]
[387245839,1758664371593,-630.04,0.00026849,3]
[387245840,1758664371603,-13418.14,0.00026849,3]
[387245841,1758664371613,-507.22,0.00026849,3]
[387245842,1758664371622,-1822.56,0.00026849,3]
[387245843,1758664371632,-2046.35,0.00026849,3]
[387245844,1758664371641,-1189.77,0.00026849,3]
[387245845,1758664371651,-908.29,0.00026849,3]
[387245846,1758664371660,-752.17,0.00026849,3]
[387245847,1758664371669,-210.45847672,0.00026849,3]
[387245848,1758664371679,-472.22,0.00026849,3]
[387245849,1758664371688,-151.956465,0.00026849,3]
[387245850,1758664371698,-400.0,0.00026849,3]
[387245851,1758664371707,-2819.02,0.00026849,3]
[387245852,1758664371716,-400.0,0.00026849,3]
[387245853,1758664371726,-2102.44,0.00026849,3]
[387245854,1758664371735,-7047.04,0.00026849,3]
[387245855,1758664371745,-624.12,0.00026849,3]
[387245856,1758664371754,-287768.75911101,0.00026849,2]
[387245857,1758664371763,-287768.75911101,0.00026849,2]
[387245858,1758664371772,-287768.75911101,0.00026849,2]
[387245859,1758664371781,-154.57851546,0.0002685,2]
[387245860,1758664371792,-350.0,0.00026868,2]
[387245861,1758664371802,-335.88859924,0.00026927,2]
[387245862,1758664371814,-1233.0,0.00026928,2]
[387245863,1758664371823,-500.0,0.00026928,2]
[387245864,1758664371832,-500.0,0.00026928,2]
[387245865,1758664371842,-434.0,0.00026928,2]
[387245866,1758664371852,-360.35,0.0002699,2]
[387245867,1758664371861,-400.0,0.00026991,3]
[387245868,1758664371870,-516.32,0.00027,7]
[387245869,1758664371879,-645.25,0.00027,7]
[387245870,1758664371889,-227.42,0.00027,7]
[387245871,1758664371898,-781.67,0.00027,7]
[387245872,1758664371907,-1000.0,0.00027,7]
[387245873,1758664371917,-443673.82038508,0.00027,2]
[387245874,1758664371927,-549.51,0.00027,7]
[387245875,1758664371936,-364.38,0.00027,7]
[387245876,1758664371945,-1068.77,0.00027,7]
[387245877,1758664371955,-323.02865827,0.00027023,2]
[387245878,1758664371964,-947.43,0.00027081,3]
[387245879,1758664371973,-2040.0,0.00027098,2]
[387245880,1758664371983,-786.0,0.00027098,2]
[387245881,1758664371992,-3387.0,0.00027098,2]
[387245882,1758664372001,-1262.0,0.00027098,2]
[387245883,1758664372011,-262.582,0.00027098,2]
[387245884,1758664372021,-4175.0,0.00027098,2]
[387245885,1758664372030,-4523.0,0.00027098,2]
[387245886,1758664372039,-155.0,0.00027122,2]
[387245887,1758664372049,-403.15,0.00027123,3]
[387245888,1758664372060,-400.0,0.00027123,3]
[387245889,1758664372070,-400.0,0.00027123,3]
[387245890,1758664372080,-422.15,0.00027123,3]
[387245891,1758664372088,-400.0,0.00027123,3]
[387245892,1758664372098,-205.13860616,0.00027123,3]
[387245893,1758664372107,-722.3,0.00027123,3]
[387245894,1758664372117,-400.0,0.00027123,3]
[387245895,1758664372126,-425.13,0.00027123,3]
[387245896,1758664372135,-400.0,0.00027123,3]
[387245897,1758664372144,-463.61,0.00027123,3]
[387245898,1758664372153,-400.0,0.00027123,3]
[387245899,1758664372162,-400.81,0.00027123,3]
[387245900,1758664372172,-606.67,0.00027123,3]
[387245901,1758664372181,-558.51,0.00027123,3]
[387245902,1758664372190,-400.0,0.00027123,3]
[387245903,1758664372199,-517.79,0.00027123,3]
[387245904,1758664372208,-410.1,0.00027123,3]
[387245905,1758664372217,-513.24,0.00027123,3]
[387245906,1758664372227,-864.38,0.00027123,3]
[387245907,1758664372236,-400.0,0.00027123,3]
[387245908,1758664372245,-400.0,0.00027123,3]
[387245909,1758664372254,-400.0,0.00027123,3]
[387245910,1758664372263,-400.0,0.00027123,3]
[387245911,1758664372272,-400.0,0.00027123,3]
[387245912,1758664372281,-400.0,0.00027123,3]
[387245913,1758664372290,-1162.37,0.00027123,3]
[387245914,1758664372299,-400.0,0.00027123,3]
[387245915,1758664372308,-499.32,0.00027123,3]
[387245916,1758664372317,-400.0,0.00027123,3]
[387245917,1758664372326,-400.0,0.00027123,3]
[387245918,1758664372335,-400.0,0.00027123,3]
[387245919,1758664372345,-701.54,0.00027123,3]
[387245920,1758664372354,-761.54,0.00027123,3]
[387245921,1758664372363,-448.15,0.00027123,3]
[387245922,1758664372372,-527.27,0.00027123,3]
[387245923,1758664372382,-400.0,0.00027123,3]
[387245924,1758664372391,-400.0,0.00027123,3]
[387245925,1758664372403,-400.0,0.00027123,3]
[387245926,1758664372412,-433.43,0.00027123,3]
[387245927,1758664372422,-400.0,0.00027123,3]
[387245928,1758664372431,-1431.46,0.00027123,3]
[387245929,1758664372441,-400.0,0.00027123,3]
[387245930,1758664372451,-888.36,0.00027123,3]
[387245931,1758664372460,-400.0,0.00027123,3]
[387245932,1758664372470,-400.0,0.00027123,3]
[387245933,1758664372480,-500.78,0.00027123,3]
[387245934,1758664372490,-400.0,0.00027123,3]
[387245935,1758664372500,-400.0,0.00027123,3]
[387245936,1758664372510,-415.37,0.00027123,3]
[387245937,1758664372519,-400.0,0.00027123,3]
[387245938,1758664372529,-851.65,0.00027123,3]
[387245939,1758664372538,-469.22,0.00027123,3]
[387245940,1758664372548,-449.67,0.00027123,3]
[387245941,1758664372557,-514.2,0.00027123,3]
[387245942,1758664372567,-696.09,0.00027123,3]
[387245943,1758664372577,-400.0,0.00027123,3]
[387245944,1758664372586,-942.3,0.00027123,3]
[387245945,1758664372595,-401.11,0.00027123,3]
[387245946,1758664372605,-401.11,0.00027123,3]
[387245947,1758664372614,-426.89,0.00027123,3]
[387245948,1758664372623,-409.1,0.00027123,3]
[387245949,1758664372633,-325.46734637,0.00027123,3]
[387245950,1758664372642,-400.0,0.00027123,3]
[387245951,1758664372651,-400.0,0.00027123,3]
[387245952,1758664372660,-483.66,0.00027123,3]
[387245953,1758664372670,-700.73,0.00027123,3]
[387245954,1758664372680,-1218.15,0.00027123,3]
[387245955,1758664372689,-432.38,0.00027123,3]
[387245956,1758664372699,-400.0,0.00027123,3]
[387245957,1758664372708,-405.40506452,0.00027123,3]
[387245958,1758664372717,-413.32,0.00027123,3]
[387245959,1758664372727,-600.39,0.00027123,3]
[387245960,1758664372736,-400.0,0.00027123,3]
[387245961,1758664372745,-525.79,0.00027123,3]
[387245962,1758664372754,-400.0,0.00027123,3]
[387245963,1758664372763,-585.89,0.00027123,3]
[387245964,1758664372773,-400.0,0.00027123,3]
[387245965,1758664372782,-1162.35,0.00027123,3]
[387245966,1758664372792,-869.19,0.00027123,3]
[387245967,1758664372801,-683.96,0.00027123,3]
[387245968,1758664372811,-400.0,0.00027123,3]
[387245969,1758664372821,-853.3,0.00027123,3]
[387245970,1758664372831,-400.0,0.00027123,3]
[387245971,1758664372840,-400.0,0.00027123,3]
[387245972,1758664372849,-684.3,0.00027123,3]
[387245973,1758664372859,-714.46,0.00027123,3]
[387245974,1758664372869,-433.77,0.00027123,3]
[387245975,1758664372878,-400.0,0.00027123,3]
[387245976,1758664372888,-451.05,0.00027123,3]
[387245977,1758664372897,-1130.1,0.00027123,3]
[387245978,1758664372907,-1034.82,0.00027123,3]
[387245979,1758664372916,-414.11,0.00027123,3]
[387245980,1758664372925,-400.0,0.00027123,3]
[387245981,1758664372934,-400.0,0.00027123,3]
[387245982,1758664372944,-400.0,0.00027123,3]
[387245983,1758664372954,-568.34,0.00027123,3]
[387245984,1758664372963,-497.27,0.00027123,3]
[387245985,1758664372972,-400.0,0.00027123,3]
[387245986,1758664372982,-483.14,0.00027123,3]
[387245987,1758664372991,-400.0,0.00027123,3]
[387245988,1758664373000,-400.0,0.00027123,3]
[387245989,1758664373010,-963.02,0.00027123,3]
[387245990,1758664373020,-442.92,0.00027123,3]
[387245991,1758664373030,-400.0,0.00027123,3]
[387245992,1758664373038,-400.0,0.00027123,3]
[387245993,1758664373048,-419.2,0.00027123,3]
[387245994,1758664373058,-495.44,0.00027123,3]
[387245995,1758664373068,-400.0,0.00027123,3]
[387245996,1758664373077,-1113.1,0.00027123,3]
[387245997,1758664373086,-564.87,0.00027123,3]
[387245998,1758664373094,-400.0,0.00027123,3]
[387245999,1758664373103,-400.0,0.00027123,3]
[387246000,1758664373112,-442.1,0.00027123,3]
[387246001,1758664373122,-612.62,0.00027123,3]
[387246002,1758664373131,-544.44,0.00027123,3]
[387246003,1758664373141,-553.48,0.00027123,3]
[387246004,1758664373151,-811.92,0.00027123,3]
[387246005,1758664373162,-866.52,0.00027123,3]
[387246006,1758664373173,-400.0,0.00027123,3]
[387246007,1758664373182,-400.0,0.00027123,3]
[387246008,1758664373192,-1271.99,0.00027123,3]
[387246009,1758664373203,-400.0,0.00027123,3]
[387246010,1758664373213,-555.94,0.00027123,3]
[387246011,1758664373223,-516.66,0.00027123,3]
[387246012,1758664373232,-443.34,0.00027123,3]
[387246013,1758664373241,-460.81,0.00027123,3]
[387246014,1758664373251,-400.0,0.00027123,3]
[387246015,1758664373260,-400.0,0.00027123,3]
[387246016,1758664373270,-502.53,0.00027123,3]
[387246017,1758664373280,-505.37,0.00027123,3]
[387246018,1758664373291,-542.19,0.00027123,3]
[387246019,1758664373300,-688.7,0.00027123,3]
[387246020,1758664373310,-1015.44,0.00027123,3]
[387246021,1758664373319,-1292.63,0.00027123,3]
[387246022,1758664373328,-1611.73,0.00027123,3]
[387246023,1758664373338,-637.7,0.00027123,3]
[387246024,1758664373347,-1000.0,0.00027123,3]
[387246025,1758664373356,-660.83,0.00027123,3]
[387246026,1758664373365,-549.84,0.00027123,3]
[387246027,1758664373374,-1262.83,0.00027123,3]
[387246028,1758664373383,-400.0,0.00027123,3]
[387246029,1758664373392,-511.14,0.00027123,3]
[387246030,1758664373405,-1072.23,0.00027123,3]
[387246031,1758664373414,-435.66,0.00027123,3]
[387246032,1758664373425,-400.0,0.00027123,3]
[387246033,1758664373435,-446.42,0.00027123,3]
[387246034,1758664373446,-956.24,0.00027123,3]
[387246035,1758664373455,-804.81,0.00027123,3]
[387246036,1758664373465,-493.33,0.00027123,3]
[387246037,1758664373476,-315.14414246,0.00027123,3]
[387246038,1758664373486,-400.0,0.00027123,3]
[387246039,1758664373495,-400.0,0.00027123,3]
[387246040,1758664373504,-400.0,0.00027123,3]
[387246041,1758664373513,-400.0,0.00027123,3]
[387246042,1758664373522,-425.12,0.00027123,3]
[387246043,1758664373531,-400.0,0.00027123,3]
[387246044,1758664373540,-409.09891581,0.00027123,3]
[387246045,1758664373549,-536.14,0.00027123,3]
[387246046,1758664373558,-400.0,0.00027123,3]
[387246047,1758664373567,-400.0,0.00027123,3]
[387246048,1758664373577,-400.0,0.00027123,3]
[387246049,1758664373585,-647.53,0.00027123,3]
[387246050,1758664373595,-1446.35,0.00027123,3]
[387246051,1758664373604,-400.0,0.00027123,3]
[387246052,1758664373613,-400.0,0.00027123,3]
[387246053,1758664373623,-400.0,0.00027123,3]
[387246054,1758664373632,-712.76,0.00027123,3]
[387246055,1758664373642,-400.0,0.00027123,3]
[387246056,1758664373651,-400.0,0.00027123,3]
[387246057,1758664373660,-742.51,0.00027123,3]
[387246058,1758664373669,-400.0,0.00027123,3]
[387246059,1758664373678,-400.0,0.00027123,3]
[387246060,1758664373687,-609.25,0.00027123,3]
[387246061,1758664373696,-1004.12,0.00027123,3]
[387246062,1758664373705,-400.0,0.00027123,3]
[387246063,1758664373714,-1267.73,0.00027123,3]
[387246064,1758664373723,-400.0,0.00027123,3]
[387246065,1758664373732,-1089.2,0.00027123,3]
[387246066,1758664373742,-414.90979206,0.00027123,3]
[387246067,1758664373751,-400.0,0.00027123,3]
[387246068,1758664373760,-936.94,0.00027123,3]
[387246069,1758664373769,-400.0,0.00027123,3]
[387246070,1758664373778,-400.0,0.00027123,3]
[387246071,1758664373788,-400.0,0.00027123,3]
[387246072,1758664373798,-628.73,0.00027123,3]
[387246073,1758664373807,-792.8,0.00027123,3]
[387246074,1758664373816,-718.2,0.00027123,3]
[387246075,1758664373825,-771.65,0.00027123,3]
[387246076,1758664373834,-735.99,0.00027123,3]
[387246077,1758664373843,-724.09,0.00027123,3]
[387246078,1758664373852,-313.61057915,0.00027123,3]
[387246079,1758664373861,-735.82,0.00027123,3]
[387246080,1758664373871,-489.37017424,0.00027123,3]
[387246081,1758664373881,-309.2926551,0.00027123,3]
[387246082,1758664373890,-400.0,0.00027123,3]
[387246083,1758664373900,-724.51,0.00027123,3]
[387246084,1758664373909,-590.38,0.00027123,3]
[387246085,1758664373919,-400.0,0.00027123,3]
[387246086,1758664373928,-443.29,0.00027123,3]
[387246087,1758664373938,-424.82,0.00027123,3]
[387246088,1758664373947,-704.47,0.00027123,3]
[387246089,1758664373957,-597.65,0.00027123,3]
[387246090,1758664373966,-644.02,0.00027123,3]
[387246091,1758664373976,-490.6,0.00027123,3]
[387246092,1758664373985,-544.45,0.00027123,3]
[387246093,1758664373995,-403.65971311,0.00027123,3]
[387246094,1758664374004,-229.67188492,0.00027123,3]
[387246095,1758664374013,-400.0,0.00027123,3]
[387246096,1758664374024,-1124.92,0.00027123,3]
[387246097,1758664374034,-400.98,0.00027123,3]
[387246098,1758664374043,-1607.1,0.00027123,3]
[387246099,1758664374053,-643.25,0.00027123,3]
[387246100,1758664374062,-412.11656666,0.00027123,3]
[387246101,1758664374071,-702.26,0.00027123,3]
[387246102,1758664374080,-623.69,0.00027123,3]
[387246103,1758664374090,-213.68086408,0.00027123,3]
[387246104,1758664374099,-400.0,0.00027123,3]
[387246105,1758664374109,-1080.61,0.00027123,3]
[387246106,1758664374118,-422.24,0.00027123,3]
[387246107,1758664374127,-417.7,0.00027123,3]
[387246108,1758664374137,-909.48,0.00027123,3]
[387246109,1758664374146,-400.0,0.00027123,3]
[387246110,1758664374156,-515.95,0.00027123,3]
[387246111,1758664374297,-400.0,0.00027123,3]
[387246112,1758664374307,-419.15,0.00027123,3]
[387246113,1758664374316,-1535.1,0.00027123,3]
[387246114,1758664374326,-421.32,0.00027123,3]
[387246115,1758664374336,-610.62,0.00027123,3]
[387246116,1758664374345,-400.0,0.00027123,3]
[387246117,1758664374354,-788.82,0.00027123,3]
[387246118,1758664374363,-501.25,0.00027123,3]
[387246119,1758664374372,-400.0,0.00027123,3]
[387246120,1758664374381,-400.0,0.00027123,3]
[387246121,1758664374391,-400.0,0.00027123,3]
[387246122,1758664374404,-400.0,0.00027123,3]
[387246123,1758664374413,-400.0,0.00027123,3]
[387246124,1758664374423,-467.58,0.00027123,3]
[387246125,1758664374431,-614.35,0.00027123,3]
[387246126,1758664374442,-387.17,0.00027123,3]
[387246127,1758664374452,-686.69,0.00027123,3]
[387246128,1758664374461,-400.0,0.00027123,3]
[387246129,1758664374471,-368.23187589,0.00027123,3]
[387246130,1758664374481,-1284.73,0.00027123,3]
[387246131,1758664374491,-642.36,0.00027123,3]
[387246132,1758664374501,-400.0,0.00027123,3]
[387246133,1758664374510,-560.54,0.00027123,3]
[387246134,1758664374520,-1073.37,0.00027123,3]
[387246135,1758664374529,-518.50322236,0.00027123,3]
[387246136,1758664374539,-753.1,0.00027123,3]
[387246137,1758664374549,-400.0,0.00027123,3]
[387246138,1758664374558,-545.97,0.00027123,3]
[387246139,1758664374568,-400.0,0.00027123,3]
[387246140,1758664374578,-400.0,0.00027123,3]
[387246141,1758664374587,-580.05,0.00027123,3]
[387246142,1758664374597,-1196.06,0.00027123,3]
[387246143,1758664374606,-779.4,0.00027123,3]
[387246144,1758664374616,-1387.31,0.00027123,3]
[387246145,1758664374627,-526.44,0.00027123,3]
[387246146,1758664374637,-400.0,0.00027123,3]
[387246147,1758664374647,-914.9,0.00027123,3]
[387246148,1758664374656,-400.0,0.00027123,3]
[387246149,1758664374666,-751.05,0.00027123,3]
[387246150,1758664374675,-10481.21,0.00027123,3]
[387246151,1758664374685,-400.0,0.00027123,3]
[387246152,1758664374695,-585.69,0.00027123,3]
[387246153,1758664374704,-1984.04,0.00027123,3]
[387246154,1758664374714,-400.0,0.00027123,3]
[387246155,1758664374723,-1075.59,0.00027123,3]
[387246156,1758664374733,-1243.9,0.00027123,3]
[387246157,1758664374743,-2675.56,0.00027123,3]
[387246158,1758664374753,-1687.56,0.00027123,3]
[387246159,1758664374763,-603.56,0.00027123,3]
[387246160,1758664374772,-400.0,0.00027123,3]
[387246161,1758664374782,-613.2,0.00027123,3]
[387246162,1758664374792,-1380.17,0.00027123,3]
[387246163,1758664374802,-400.0,0.00027123,3]
[387246164,1758664374811,-400.0,0.00027123,3]
[387246165,1758664374821,-637.31,0.00027123,3]
[387246166,1758664374830,-536.31,0.00027123,3]
[387246167,1758664374840,-1960.16,0.00027123,3]
[387246168,1758664374850,-653.4,0.00027123,3]
[387246169,1758664374860,-400.0,0.00027123,3]
[387246170,1758664374870,-400.0,0.00027123,3]
[387246171,1758664374880,-3596.07,0.00027123,3]
[387246172,1758664374889,-1811.83,0.00027123,3]
[387246173,1758664374899,-400.0,0.00027123,3]
[387246174,1758664374908,-485.31,0.00027123,3]
[387246175,1758664374918,-609.4,0.00027123,3]
[387246176,1758664374927,-1777.36,0.00027123,3]
[387246177,1758664374936,-955.0,0.00027123,3]
[387246178,1758664374946,-1530.13,0.00027123,3]
[387246179,1758664374955,-400.0,0.00027123,3]
[387246180,1758664374965,-1065.12,0.00027123,3]
[387246181,1758664374974,-400.0,0.00027123,3]
[387246182,1758664374983,-624.46,0.00027123,3]
[387246183,1758664374993,-668.62,0.00027123,3]
[387246184,1758664375002,-400.0,0.00027123,3]
[387246185,1758664375012,-766.88,0.00027123,3]
[387246186,1758664375022,-488.82,0.00027123,3]
[387246187,1758664375032,-400.0,0.00027123,3]
[387246188,1758664375043,-1866.98,0.00027123,3]
[387246189,1758664375053,-674.88,0.00027123,3]
[387246190,1758664375063,-507.6,0.00027123,3]
[387246191,1758664375073,-2251.93,0.00027123,3]
[387246192,1758664375083,-1430.39,0.00027123,3]
[387246193,1758664375092,-1005.24,0.00027123,3]
[387246194,1758664375102,-400.0,0.00027123,3]
[387246195,1758664375112,-706.55,0.00027123,3]
[387246196,1758664375122,-400.0,0.00027123,3]
[387246197,1758664375132,-471.06,0.00027123,3]
[387246198,1758664375142,-440.49,0.00027123,3]
[387246199,1758664375151,-1632.87,0.00027123,3]
[387246200,1758664375168,-2172.06,0.00027123,3]
[387246201,1758664375180,-1577.53,0.00027123,3]
[387246202,1758664375191,-573.43,0.00027123,3]
[387246203,1758664375201,-1762.21,0.00027123,3]
[387246204,1758664375211,-2598.87,0.00027123,3]
[387246205,1758664375221,-2106.48,0.00027123,3]
[387246206,1758664375231,-400.0,0.00027123,3]
[387246207,1758664375241,-2137.16,0.00027123,3]
[387246208,1758664375251,-1633.99,0.00027123,3]